[Event "*** SCC Grand Prix: Titled Tuesday Blitz"]
[Site "Chess.com"]
[Date "2020.06.23"]
[Round "2"]
[White "Belka1989"]
[Black "axlbvRR"]
[Result "1-0"]
[WhiteElo "2354"]
[BlackElo "1867"]
[TimeControl "180+1"]
[EndTime "10:15:13 PDT"]
[Termination "Belka1989 won by checkmate"]

1. d4 {[%clk 0:03:00.9]} 1... e6 {[%clk 0:03:00.6]} 2. Nf3 {[%clk 0:03:00.3]}
2... d5 {[%clk 0:03:00.7]} 3. Bf4 {[%clk 0:03:00.5]} 3... Bd6 {[%clk 0:02:59.9]}
4. Ne5 {[%clk 0:02:58.7]} 4... c5 {[%clk 0:02:57.6]} 5. e3 {[%clk 0:02:56.5]}
5... Nf6 {[%clk 0:02:57.4]} 6. c3 {[%clk 0:02:55.8]} 6... O-O {[%clk 0:02:56.7]}
7. Nd2 {[%clk 0:02:55.5]} 7... Nc6 {[%clk 0:02:56.9]} 8. Bd3 {[%clk 0:02:54.8]}
8... Qe7 {[%clk 0:02:41.2]} 9. O-O {[%clk 0:02:37.1]} 9... Bd7 {[%clk
0:02:35.6]} 10. Bg3 {[%clk 0:02:33.7]} 10... Rac8 {[%clk 0:02:24.6]} 11. f4
{[%clk 0:02:33.4]} 11... Rfe8 {[%clk 0:02:03]} 12. Bh4 {[%clk 0:02:29.7]} 12...
a6 {[%clk 0:01:41.1]} 13. Qf3 {[%clk 0:02:28.8]} 13... Qd8 {[%clk 0:01:36.8]}
14. g4 {[%clk 0:02:25.8]} 14... Be7 {[%clk 0:01:29.9]} 15. Bxf6 {[%clk
0:02:21.9]} 15... Bxf6 {[%clk 0:01:28.4]} 16. g5 {[%clk 0:02:22.2]} 16... Be7
{[%clk 0:01:25.4]} 17. Bxh7+ {[%clk 0:02:16.4]} 17... Kf8 {[%clk 0:01:20.1]} 18.
Qh5 {[%clk 0:02:10.6]} 18... cxd4 {[%clk 0:01:01.3]} 19. Qxf7# {[%clk
0:02:06.7]} 1-0

[Event "*** SCC Grand Prix: Titled Tuesday Blitz"]
[Site "Chess.com"]
[Date "2020.06.23"]
[Round "2"]
[White "Twitch_ElhamBlitz05"]
[Black "XiaoKangZhong"]
[Result "1-0"]
[WhiteElo "2766"]
[BlackElo "2409"]
[TimeControl "180+1"]
[EndTime "10:15:14 PDT"]
[Termination "Twitch_ElhamBlitz05 won by resignation"]

1. e4 {[%clk 0:03:00.9]} 1... c6 {[%clk 0:02:58.3]} 2. d4 {[%clk 0:02:57.1]}
2... d5 {[%clk 0:02:52.2]} 3. Nc3 {[%clk 0:02:56.7]} 3... dxe4 {[%clk
0:02:45.9]} 4. Nxe4 {[%clk 0:02:57.6]} 4... Nf6 {[%clk 0:02:46.2]} 5. Nxf6+
{[%clk 0:02:57.5]} 5... exf6 {[%clk 0:02:47.1]} 6. c3 {[%clk 0:02:57.6]} 6...
Bd6 {[%clk 0:02:47.5]} 7. Bd3 {[%clk 0:02:58.1]} 7... O-O {[%clk 0:02:48.2]} 8.
Qc2 {[%clk 0:02:58.2]} 8... Re8+ {[%clk 0:02:48.9]} 9. Ne2 {[%clk 0:02:58]} 9...
h5 {[%clk 0:02:49]} 10. O-O {[%clk 0:02:58.3]} 10... Qc7 {[%clk 0:02:49.2]} 11.
h3 {[%clk 0:02:57.4]} 11... Nd7 {[%clk 0:02:48.2]} 12. Re1 {[%clk 0:02:57.1]}
12... Nf8 {[%clk 0:02:44.7]} 13. Be3 {[%clk 0:02:57]} 13... Bd7 {[%clk
0:02:39.6]} 14. Qd2 {[%clk 0:02:56.4]} 14... Rad8 {[%clk 0:02:24.4]} 15. Nf4
{[%clk 0:02:48.6]} 15... g6 {[%clk 0:02:11.5]} 16. d5 {[%clk 0:02:42]} 16... c5
{[%clk 0:02:07.3]} 17. c4 {[%clk 0:02:38.7]} 17... Kg7 {[%clk 0:01:46.5]} 18.
Re2 {[%clk 0:02:14.1]} 18... Bc8 {[%clk 0:01:41.6]} 19. Rae1 {[%clk 0:02:10.8]}
19... Nd7 {[%clk 0:01:41.1]} 20. Nxh5+ {[%clk 0:02:02.8]} 20... gxh5 {[%clk
0:01:34.6]} 21. Bh6+ {[%clk 0:02:02.2]} 21... Kg8 {[%clk 0:01:18.5]} 22. Rxe8+
{[%clk 0:02:03.1]} 22... Rxe8 {[%clk 0:01:18.6]} 23. Rxe8+ {[%clk 0:02:04]}
23... Nf8 {[%clk 0:01:12.3]} 24. Bxf8 {[%clk 0:01:58]} 24... Bxf8 {[%clk
0:01:11.8]} 25. Qh6 {[%clk 0:01:58.5]} 1-0

[Event "*** SCC Grand Prix: Titled Tuesday Blitz"]
[Site "Chess.com"]
[Date "2020.06.23"]
[Round "2"]
[White "MIJUAREZ"]
[Black "MikeSailer"]
[Result "0-1"]
[WhiteElo "2380"]
[BlackElo "2116"]
[TimeControl "180+1"]
[EndTime "10:15:20 PDT"]
[Termination "MikeSailer won on time"]

1. e4 {[%clk 0:03:00.9]} 1... d5 {[%clk 0:02:59.4]} 2. exd5 {[%clk 0:02:59.4]}
2... Qxd5 {[%clk 0:02:59]} 3. Nc3 {[%clk 0:02:59.9]} 3... Qd6 {[%clk 0:02:59.4]}
4. Nf3 {[%clk 0:02:54.2]} 4... Nf6 {[%clk 0:02:59.1]} 5. d4 {[%clk 0:02:53.5]}
5... c6 {[%clk 0:02:59.2]} 6. g3 {[%clk 0:02:53.2]} 6... Bf5 {[%clk 0:02:58.8]}
7. Bf4 {[%clk 0:02:52.6]} 7... Qd8 {[%clk 0:02:57.6]} 8. Bg2 {[%clk 0:02:51.2]}
8... e6 {[%clk 0:02:58.2]} 9. O-O {[%clk 0:02:51]} 9... h6 {[%clk 0:02:58.8]}
10. Ne5 {[%clk 0:02:50.6]} 10... Be7 {[%clk 0:02:58.1]} 11. Qe2 {[%clk
0:02:50.5]} 11... O-O {[%clk 0:02:57.4]} 12. Rad1 {[%clk 0:02:48.1]} 12... Nbd7
{[%clk 0:02:57.2]} 13. g4 {[%clk 0:02:45.7]} 13... Bh7 {[%clk 0:02:52.2]} 14.
Rfe1 {[%clk 0:02:42.1]} 14... Nd5 {[%clk 0:02:40.3]} 0-1

[Event "*** SCC Grand Prix: Titled Tuesday Blitz"]
[Site "Chess.com"]
[Date "2020.06.23"]
[Round "2"]
[White "queen_iryna"]
[Black "saikrishnaReturns"]
[Result "0-1"]
[WhiteElo "2255"]
[BlackElo "2634"]
[TimeControl "180+1"]
[EndTime "10:15:23 PDT"]
[Termination "saikrishnaReturns won by resignation"]

1. d4 {[%clk 0:03:00.9]} 1... Nf6 {[%clk 0:02:45.5]} 2. Bg5 {[%clk 0:02:55.4]}
2... c5 {[%clk 0:02:44.7]} 3. Bxf6 {[%clk 0:02:48.2]} 3... gxf6 {[%clk
0:02:45.6]} 4. d5 {[%clk 0:02:48.7]} 4... Qb6 {[%clk 0:02:45.3]} 5. Qc1 {[%clk
0:02:48]} 5... f5 {[%clk 0:02:44.7]} 6. c4 {[%clk 0:02:47.4]} 6... Bh6 {[%clk
0:02:34.3]} 7. e3 {[%clk 0:02:45.6]} 7... d6 {[%clk 0:02:34.7]} 8. Nc3 {[%clk
0:02:44.5]} 8... Nd7 {[%clk 0:02:35.3]} 9. Nf3 {[%clk 0:02:38.7]} 9... Ne5
{[%clk 0:02:34.7]} 10. Nxe5 {[%clk 0:02:25.4]} 10... dxe5 {[%clk 0:02:35.6]} 11.
Be2 {[%clk 0:02:19.3]} 11... f4 {[%clk 0:02:27.1]} 12. exf4 {[%clk 0:02:10.4]}
12... exf4 {[%clk 0:02:10.1]} 13. f3 {[%clk 0:02:08.5]} 13... Rg8 {[%clk
0:02:09.4]} 14. Qc2 {[%clk 0:01:27.3]} 14... Rxg2 {[%clk 0:02:01.9]} 15. Qxh7
{[%clk 0:01:21.1]} 15... Qxb2 {[%clk 0:01:57]} 16. Qh8+ {[%clk 0:01:20.4]} 16...
Bf8 {[%clk 0:01:53.3]} 17. Rb1 {[%clk 0:01:17.8]} 17... Rxe2+ {[%clk 0:01:51.2]}
18. Kf1 {[%clk 0:00:59.8]} 18... Rf2+ {[%clk 0:01:50.1]} 0-1

[Event "*** SCC Grand Prix: Titled Tuesday Blitz"]
[Site "Chess.com"]
[Date "2020.06.23"]
[Round "2"]
[White "JakubPulpan"]
[Black "Savva09022009"]
[Result "1-0"]
[WhiteElo "2685"]
[BlackElo "2431"]
[TimeControl "180+1"]
[EndTime "10:15:24 PDT"]
[Termination "JakubPulpan won by resignation"]

1. e4 {[%clk 0:03:00.9]} 1... c5 {[%clk 0:02:59.2]} 2. Nf3 {[%clk 0:02:53.6]}
2... Nc6 {[%clk 0:02:59.4]} 3. Bb5 {[%clk 0:02:52.3]} 3... Nf6 {[%clk
0:02:58.3]} 4. Bxc6 {[%clk 0:02:47.5]} 4... dxc6 {[%clk 0:02:56.7]} 5. d3 {[%clk
0:02:47.4]} 5... Bg4 {[%clk 0:02:54.2]} 6. h3 {[%clk 0:02:47.6]} 6... Bxf3
{[%clk 0:02:55.1]} 7. Qxf3 {[%clk 0:02:48.3]} 7... e5 {[%clk 0:02:54.3]} 8. Nd2
{[%clk 0:02:48.9]} 8... Be7 {[%clk 0:02:53.5]} 9. Nc4 {[%clk 0:02:49.1]} 9...
Nd7 {[%clk 0:02:53.1]} 10. Ne3 {[%clk 0:02:48.5]} 10... O-O {[%clk 0:02:51.3]}
11. Nf5 {[%clk 0:02:48.3]} 11... g6 {[%clk 0:02:50.5]} 12. Nxe7+ {[%clk
0:02:46.5]} 12... Qxe7 {[%clk 0:02:51.4]} 13. O-O {[%clk 0:02:47.1]} 13... Rfe8
{[%clk 0:02:51.3]} 14. Qg3 {[%clk 0:02:46.9]} 14... Nf8 {[%clk 0:02:50.9]} 15.
f4 {[%clk 0:02:47]} 15... exf4 {[%clk 0:02:50.4]} 16. Bxf4 {[%clk 0:02:47.1]}
16... Ne6 {[%clk 0:02:51.3]} 17. Bd6 {[%clk 0:02:44.4]} 17... Qd7 {[%clk
0:02:49.9]} 18. Be5 {[%clk 0:02:43.5]} 18... Nd4 {[%clk 0:02:48.8]} 19. Rf2
{[%clk 0:02:43.1]} 19... Qe6 {[%clk 0:02:46.5]} 20. Bxd4 {[%clk 0:02:31.7]}
20... cxd4 {[%clk 0:02:47.4]} 21. Raf1 {[%clk 0:02:32.2]} 21... Rf8 {[%clk
0:02:42.5]} 22. b3 {[%clk 0:02:28.9]} 22... Kg7 {[%clk 0:02:41.7]} 23. Qc7
{[%clk 0:02:24.1]} 23... b5 {[%clk 0:02:20.9]} 24. Rf6 {[%clk 0:02:17.5]} 24...
Qxf6 {[%clk 0:02:18.8]} 25. Rxf6 {[%clk 0:02:18.4]} 25... Kxf6 {[%clk
0:02:19.1]} 26. Qxc6+ {[%clk 0:02:19.3]} 26... Kg7 {[%clk 0:02:18.1]} 27. Qxb5
{[%clk 0:02:20.2]} 27... Rac8 {[%clk 0:02:16.2]} 28. Qe5+ {[%clk 0:02:16.5]}
28... Kg8 {[%clk 0:02:12.8]} 29. Qxd4 {[%clk 0:02:16.9]} 29... Rxc2 {[%clk
0:02:12.9]} 30. Qxa7 {[%clk 0:02:16.4]} 30... Rfc8 {[%clk 0:02:06.3]} 31. e5
{[%clk 0:02:14.5]} 31... Rd2 {[%clk 0:02:05.3]} 32. e6 {[%clk 0:02:01.9]} 32...
fxe6 {[%clk 0:02:02.7]} 33. Qd7 {[%clk 0:02:00.6]} 33... Rcc2 {[%clk 0:02:01.1]}
34. Qxe6+ {[%clk 0:02:00.2]} 34... Kg7 {[%clk 0:02:02]} 35. Qe5+ {[%clk
0:02:00.3]} 35... Kg8 {[%clk 0:02:01.8]} 36. Qd5+ {[%clk 0:02:00]} 36... Kf8
{[%clk 0:02:01.6]} 37. a4 {[%clk 0:02:00.1]} 37... Ra2 {[%clk 0:01:47.3]} 38. a5
{[%clk 0:01:58.7]} 38... Ke7 {[%clk 0:01:47.7]} 39. a6 {[%clk 0:01:58]} 39...
Rxa6 {[%clk 0:01:41.4]} 40. Qb7+ {[%clk 0:01:57.7]} 1-0

[Event "*** SCC Grand Prix: Titled Tuesday Blitz"]
[Site "Chess.com"]
[Date "2020.06.23"]
[Round "2"]
[White "ArjunErigaisi2003"]
[Black "aNaartjieZA"]
[Result "1-0"]
[WhiteElo "2912"]
[BlackElo "2570"]
[TimeControl "180+1"]
[EndTime "10:15:40 PDT"]
[Termination "ArjunErigaisi2003 won by resignation"]

1. c4 {[%clk 0:03:00.9]} 1... Nf6 {[%clk 0:02:59.8]} 2. Nc3 {[%clk 0:02:59.2]}
2... g6 {[%clk 0:02:59.5]} 3. e4 {[%clk 0:02:59]} 3... d6 {[%clk 0:02:59.8]} 4.
d4 {[%clk 0:02:59.6]} 4... Bg7 {[%clk 0:03:00.1]} 5. Be2 {[%clk 0:02:59.7]} 5...
O-O {[%clk 0:03:00.3]} 6. Bg5 {[%clk 0:02:58.9]} 6... c5 {[%clk 0:02:57.6]} 7.
d5 {[%clk 0:02:58.3]} 7... e6 {[%clk 0:02:57]} 8. Nf3 {[%clk 0:02:58]} 8... h6
{[%clk 0:02:56.9]} 9. Be3 {[%clk 0:02:58.4]} 9... exd5 {[%clk 0:02:56.9]} 10.
cxd5 {[%clk 0:02:59.3]} 10... Re8 {[%clk 0:02:51.3]} 11. Nd2 {[%clk 0:02:59.6]}
11... Nbd7 {[%clk 0:02:51.3]} 12. O-O {[%clk 0:02:59.9]} 12... a6 {[%clk
0:02:50.9]} 13. a4 {[%clk 0:02:59.2]} 13... Ne5 {[%clk 0:02:49.9]} 14. h3 {[%clk
0:02:58.9]} 14... g5 {[%clk 0:02:49.5]} 15. f4 {[%clk 0:02:54.8]} 15... gxf4
{[%clk 0:02:48.8]} 16. Bxf4 {[%clk 0:02:55.7]} 16... Ng6 {[%clk 0:02:48.4]} 17.
Bh2 {[%clk 0:02:55.8]} 17... Ne5 {[%clk 0:02:41.3]} 18. Qe1 {[%clk 0:02:52.9]}
18... Kh8 {[%clk 0:02:39.7]} 19. Qh4 {[%clk 0:02:48]} 19... Ng6 {[%clk
0:02:27.6]} 20. Qg3 {[%clk 0:02:44.4]} 20... Ne5 {[%clk 0:02:27.1]} 21. Kh1
{[%clk 0:02:44.4]} 21... Rg8 {[%clk 0:02:27]} 22. Qh4 {[%clk 0:02:39.1]} 22...
Ng6 {[%clk 0:02:22.1]} 23. Qf2 {[%clk 0:02:38.2]} 23... Rf8 {[%clk 0:02:14]} 24.
Nc4 {[%clk 0:02:36.9]} 24... Ne8 {[%clk 0:02:14.2]} 25. Bh5 {[%clk 0:02:30.7]}
25... Qg5 {[%clk 0:02:11.9]} 26. Bxg6 {[%clk 0:02:21.8]} 26... Qxg6 {[%clk
0:02:11.8]} 27. e5 {[%clk 0:02:19.1]} 27... dxe5 {[%clk 0:02:09.4]} 28. Nxe5
{[%clk 0:02:20]} 28... Bxe5 {[%clk 0:02:05.6]} 29. Bxe5+ {[%clk 0:02:20.9]}
29... Kh7 {[%clk 0:02:05.5]} 30. Qxc5 {[%clk 0:02:18]} 30... Rg8 {[%clk
0:02:02.6]} 31. Qf2 {[%clk 0:02:15.4]} 31... f6 {[%clk 0:02:00.2]} 32. Bh2
{[%clk 0:02:15]} 32... Bd7 {[%clk 0:01:59.7]} 33. Rae1 {[%clk 0:02:13.6]} 33...
Rg7 {[%clk 0:01:59.8]} 34. Re3 {[%clk 0:02:12.6]} 34... Rc8 {[%clk 0:01:57.4]}
35. Rg3 {[%clk 0:02:11.7]} 35... Qf7 {[%clk 0:01:57.6]} 36. Rxg7+ {[%clk
0:02:11.6]} 36... Qxg7 {[%clk 0:01:58]} 37. Re1 {[%clk 0:02:08.3]} 37... Rc4
{[%clk 0:01:52.2]} 38. Bf4 {[%clk 0:02:03.8]} 38... b5 {[%clk 0:01:40.1]} 39.
axb5 {[%clk 0:02:02.9]} 39... axb5 {[%clk 0:01:40.1]} 40. d6 {[%clk 0:02:02.3]}
1-0

[Event "*** SCC Grand Prix: Titled Tuesday Blitz"]
[Site "Chess.com"]
[Date "2020.06.23"]
[Round "2"]
[White "Ovsiannikov_Maxim"]
[Black "otrov-11"]
[Result "0-1"]
[WhiteElo "2118"]
[BlackElo "2403"]
[TimeControl "180+1"]
[EndTime "10:15:42 PDT"]
[Termination "otrov-11 won by checkmate"]

1. d4 {[%clk 0:03:00.9]} 1... Nf6 {[%clk 0:02:59.3]} 2. Bg5 {[%clk 0:03:00.6]}
2... d5 {[%clk 0:02:58.5]} 3. Bxf6 {[%clk 0:03:00]} 3... exf6 {[%clk 0:02:59.4]}
4. Nf3 {[%clk 0:03:00.1]} 4... f5 {[%clk 0:02:57.8]} 5. e3 {[%clk 0:03:00.5]}
5... Nd7 {[%clk 0:02:57.8]} 6. Nc3 {[%clk 0:03:00.2]} 6... Nf6 {[%clk
0:02:57.9]} 7. g3 {[%clk 0:03:00.6]} 7... c6 {[%clk 0:02:56.4]} 8. Bg2 {[%clk
0:03:01.1]} 8... Bd6 {[%clk 0:02:56.5]} 9. O-O {[%clk 0:03:01.3]} 9... O-O
{[%clk 0:02:56.9]} 10. Ne5 {[%clk 0:03:01.4]} 10... Ne4 {[%clk 0:02:54.6]} 11.
Nxe4 {[%clk 0:03:00.4]} 11... fxe4 {[%clk 0:02:55.5]} 12. f3 {[%clk 0:02:47.6]}
12... exf3 {[%clk 0:02:46.2]} 13. Nxf3 {[%clk 0:02:44.3]} 13... Re8 {[%clk
0:02:45.9]} 14. Qd3 {[%clk 0:02:44.3]} 14... a5 {[%clk 0:02:39.6]} 15. Rae1
{[%clk 0:02:44.7]} 15... b6 {[%clk 0:02:36.4]} 16. Rf2 {[%clk 0:02:44.3]} 16...
Ba6 {[%clk 0:02:28.7]} 17. Qd2 {[%clk 0:02:40.7]} 17... f6 {[%clk 0:02:25.7]}
18. c3 {[%clk 0:02:40.3]} 18... Qc7 {[%clk 0:02:21.5]} 19. Nh4 {[%clk
0:02:39.5]} 19... Bf8 {[%clk 0:02:19.2]} 20. e4 {[%clk 0:02:33.5]} 20... dxe4
{[%clk 0:02:16.2]} 21. Rxe4 {[%clk 0:02:33]} 21... Rxe4 {[%clk 0:02:14.8]} 22.
Bxe4 {[%clk 0:02:33.5]} 22... Rd8 {[%clk 0:02:15.5]} 23. Qc2 {[%clk 0:02:28.4]}
23... g5 {[%clk 0:01:58.3]} 24. Nf5 {[%clk 0:02:20.9]} 24... c5 {[%clk
0:01:56.9]} 25. Rd2 {[%clk 0:02:13.8]} 25... cxd4 {[%clk 0:01:52.1]} 26. Nxd4
{[%clk 0:02:12.8]} 26... Bc5 {[%clk 0:01:50.2]} 27. Kg2 {[%clk 0:02:06.9]} 27...
Bb7 {[%clk 0:01:45.1]} 28. Bxb7 {[%clk 0:02:04.4]} 28... Qxb7+ {[%clk 0:01:46]}
29. Kh3 {[%clk 0:01:59]} 29... Qc8+ {[%clk 0:01:40.7]} 30. g4 {[%clk 0:01:52.3]}
30... Bxd4 {[%clk 0:01:33.3]} 31. Rxd4 {[%clk 0:01:47.3]} 31... Rxd4 {[%clk
0:01:31.4]} 32. Qb3+ {[%clk 0:01:46]} 32... Rc4 {[%clk 0:01:29.7]} 33. Qxb6
{[%clk 0:01:46.3]} 33... Qxg4# {[%clk 0:01:29.4]} 0-1

[Event "*** SCC Grand Prix: Titled Tuesday Blitz"]
[Site "Chess.com"]
[Date "2020.06.23"]
[Round "2"]
[White "kikydu96"]
[Black "deribas12345"]
[Result "0-1"]
[WhiteElo "2313"]
[BlackElo "2558"]
[TimeControl "180+1"]
[EndTime "10:15:51 PDT"]
[Termination "deribas12345 won by resignation"]

1. e4 {[%clk 0:03:00.9]} 1... c5 {[%clk 0:02:59.2]} 2. Nf3 {[%clk 0:02:58.9]}
2... d6 {[%clk 0:02:59.1]} 3. d4 {[%clk 0:02:58.4]} 3... cxd4 {[%clk 0:03:00]}
4. Nxd4 {[%clk 0:02:59]} 4... Nf6 {[%clk 0:03:00.3]} 5. Nc3 {[%clk 0:02:57]}
5... a6 {[%clk 0:03:00.4]} 6. a3 {[%clk 0:02:55.7]} 6... e5 {[%clk 0:02:59.8]}
7. Nf5 {[%clk 0:02:54.6]} 7... Bxf5 {[%clk 0:02:56.8]} 8. exf5 {[%clk 0:02:54]}
8... d5 {[%clk 0:02:54]} 9. Bg5 {[%clk 0:02:51.2]} 9... d4 {[%clk 0:02:53.9]}
10. Ne4 {[%clk 0:02:50.7]} 10... Be7 {[%clk 0:02:53.9]} 11. Bxf6 {[%clk
0:02:48.3]} 11... Bxf6 {[%clk 0:02:53.8]} 12. Bd3 {[%clk 0:02:47.9]} 12... Nc6
{[%clk 0:02:49]} 13. O-O {[%clk 0:02:45.8]} 13... O-O {[%clk 0:02:48.3]} 14. Qf3
{[%clk 0:02:38.4]} 14... h6 {[%clk 0:02:44.6]} 15. g4 {[%clk 0:02:37.6]} 15...
Bg5 {[%clk 0:02:35.5]} 16. Kg2 {[%clk 0:02:34.8]} 16... Bf4 {[%clk 0:02:17.9]}
17. f6 {[%clk 0:02:25.3]} 17... Rc8 {[%clk 0:01:59.5]} 18. fxg7 {[%clk
0:02:13.9]} 18... Kxg7 {[%clk 0:01:59.3]} 19. Ng3 {[%clk 0:02:11.1]} 19... Ne7
{[%clk 0:01:10.8]} 20. Nh5+ {[%clk 0:02:06.1]} 20... Kh8 {[%clk 0:01:10.8]} 21.
Nxf4 {[%clk 0:01:56.3]} 21... exf4 {[%clk 0:01:11.7]} 22. Qxf4 {[%clk
0:01:55.4]} 22... Rc6 {[%clk 0:01:10.9]} 23. Rae1 {[%clk 0:01:47.3]} 23... Ng6
{[%clk 0:01:06.1]} 24. Qxh6+ {[%clk 0:01:45.4]} 24... Kg8 {[%clk 0:01:06.4]} 25.
Qg5 {[%clk 0:01:38.7]} 25... Qxg5 {[%clk 0:01:04.9]} 0-1

[Event "*** SCC Grand Prix: Titled Tuesday Blitz"]
[Site "Chess.com"]
[Date "2020.06.23"]
[Round "2"]
[White "gmcorrales"]
[Black "K-Nygren"]
[Result "1-0"]
[WhiteElo "2815"]
[BlackElo "2537"]
[TimeControl "180+1"]
[EndTime "10:15:55 PDT"]
[Termination "gmcorrales won by resignation"]

1. e4 {[%clk 0:03:00.9]} 1... c5 {[%clk 0:02:59.1]} 2. Nf3 {[%clk 0:03:00.9]}
2... Nc6 {[%clk 0:02:59.1]} 3. d4 {[%clk 0:02:58.1]} 3... cxd4 {[%clk
0:02:58.7]} 4. Nxd4 {[%clk 0:02:59]} 4... Nf6 {[%clk 0:02:58.7]} 5. Nc3 {[%clk
0:02:59]} 5... e5 {[%clk 0:02:58.6]} 6. Ndb5 {[%clk 0:02:59]} 6... d6 {[%clk
0:02:58.6]} 7. Bg5 {[%clk 0:02:59.2]} 7... a6 {[%clk 0:02:57.9]} 8. Na3 {[%clk
0:02:58.3]} 8... b5 {[%clk 0:02:56.3]} 9. Bxf6 {[%clk 0:02:58.7]} 9... gxf6
{[%clk 0:02:54.2]} 10. Nd5 {[%clk 0:02:59.3]} 10... Bg7 {[%clk 0:02:53.3]} 11.
Bd3 {[%clk 0:02:59.8]} 11... Ne7 {[%clk 0:02:50.7]} 12. Nxe7 {[%clk 0:02:59.3]}
12... Qxe7 {[%clk 0:02:49.9]} 13. O-O {[%clk 0:02:59.6]} 13... Bb7 {[%clk
0:02:48.9]} 14. c4 {[%clk 0:02:59.7]} 14... O-O {[%clk 0:02:46.3]} 15. Qf3
{[%clk 0:02:56]} 15... bxc4 {[%clk 0:02:41.6]} 16. Nxc4 {[%clk 0:02:56.9]} 16...
Kh8 {[%clk 0:02:24.8]} 17. Ne3 {[%clk 0:02:56.8]} 17... Rg8 {[%clk 0:02:21.2]}
18. Rad1 {[%clk 0:02:56.2]} 18... Bh6 {[%clk 0:01:59.5]} 19. Nf5 {[%clk
0:02:55.2]} 19... Qf8 {[%clk 0:01:59.3]} 20. Bc4 {[%clk 0:02:55.3]} 20... Rd8
{[%clk 0:01:53.3]} 21. Rd3 {[%clk 0:02:47.8]} 21... Rg5 {[%clk 0:01:39.1]} 22.
Rfd1 {[%clk 0:02:47.2]} 22... Bc8 {[%clk 0:01:37.6]} 23. Nxd6 {[%clk 0:01:46.9]}
23... Rxd6 {[%clk 0:01:05]} 24. Rxd6 {[%clk 0:01:45.9]} 24... Bg4 {[%clk
0:01:05.9]} 25. Qxf6+ {[%clk 0:01:45]} 25... Kg8 {[%clk 0:01:04]} 26. Rd8 {[%clk
0:01:38.6]} 1-0

[Event "*** SCC Grand Prix: Titled Tuesday Blitz"]
[Site "Chess.com"]
[Date "2020.06.23"]
[Round "2"]
[White "Agent-JL"]
[Black "enzovsky"]
[Result "0-1"]
[WhiteElo "2473"]
[BlackElo "2318"]
[TimeControl "180+1"]
[EndTime "10:15:59 PDT"]
[Termination "enzovsky won by resignation"]

1. d4 {[%clk 0:03:00.9]} 1... Nf6 {[%clk 0:02:59.9]} 2. c4 {[%clk 0:03:00.4]}
2... g6 {[%clk 0:02:59.9]} 3. Nc3 {[%clk 0:02:58]} 3... d5 {[%clk 0:03:00.4]} 4.
cxd5 {[%clk 0:02:56.1]} 4... Nxd5 {[%clk 0:03:01.3]} 5. e4 {[%clk 0:02:56.7]}
5... Nxc3 {[%clk 0:03:01.1]} 6. bxc3 {[%clk 0:02:57.6]} 6... Bg7 {[%clk
0:03:01.9]} 7. Be3 {[%clk 0:02:57.4]} 7... c5 {[%clk 0:03:02.8]} 8. Qd2 {[%clk
0:02:57.1]} 8... Qa5 {[%clk 0:03:01.3]} 9. Rb1 {[%clk 0:02:56.3]} 9... O-O
{[%clk 0:03:00.3]} 10. Rb5 {[%clk 0:02:55.6]} 10... Qa4 {[%clk 0:02:56.9]} 11.
Rxc5 {[%clk 0:02:54.5]} 11... b6 {[%clk 0:02:55.7]} 12. Rc7 {[%clk 0:02:34.3]}
12... Na6 {[%clk 0:02:53.1]} 13. Rc4 {[%clk 0:02:29.7]} 13... Qa3 {[%clk
0:02:48.6]} 14. Qc2 {[%clk 0:02:15.8]} 14... Bd7 {[%clk 0:02:44]} 15. Bc1 {[%clk
0:01:55.8]} 15... Qd6 {[%clk 0:02:41.2]} 16. a4 {[%clk 0:01:44.2]} 16... b5
{[%clk 0:02:33.3]} 17. e5 {[%clk 0:01:11.8]} 17... Qb6 {[%clk 0:02:28.5]} 18.
axb5 {[%clk 0:00:59.2]} 18... Bxb5 {[%clk 0:02:29.4]} 19. Ra4 {[%clk 0:00:52]}
19... Bxa4 {[%clk 0:02:20.6]} 20. Qxa4 {[%clk 0:00:52.9]} 20... Qb1 {[%clk
0:02:21.2]} 21. Kd1 {[%clk 0:00:38.5]} 21... Nc7 {[%clk 0:02:09.8]} 22. Qc2
{[%clk 0:00:35.2]} 22... Qb7 {[%clk 0:02:01.6]} 23. Bd3 {[%clk 0:00:35]} 23...
Qxg2 {[%clk 0:01:54.3]} 24. Be4 {[%clk 0:00:34.1]} 24... Qf1+ {[%clk 0:01:53.7]}
25. Kd2 {[%clk 0:00:35]} 25... Bh6+ {[%clk 0:01:53.4]} 0-1

[Event "*** SCC Grand Prix: Titled Tuesday Blitz"]
[Site "Chess.com"]
[Date "2020.06.23"]
[Round "2"]
[White "Chigorinetz"]
[Black "dosto07"]
[Result "1-0"]
[WhiteElo "2516"]
[BlackElo "2170"]
[TimeControl "180+1"]
[EndTime "10:16:06 PDT"]
[Termination "Chigorinetz won by resignation"]

1. e4 {[%clk 0:03:00.9]} 1... e5 {[%clk 0:02:59.1]} 2. Bc4 {[%clk 0:03:00.1]}
2... Nf6 {[%clk 0:02:57.3]} 3. d3 {[%clk 0:03:00]} 3... Nc6 {[%clk 0:02:56.5]}
4. Nc3 {[%clk 0:02:59.6]} 4... Bc5 {[%clk 0:02:56.9]} 5. f4 {[%clk 0:02:59.2]}
5... d6 {[%clk 0:02:54.5]} 6. Nf3 {[%clk 0:02:58.9]} 6... exf4 {[%clk
0:02:52.5]} 7. Bxf4 {[%clk 0:02:57.8]} 7... Nd4 {[%clk 0:02:52.6]} 8. Bg5 {[%clk
0:02:46.4]} 8... h6 {[%clk 0:02:50.1]} 9. Bh4 {[%clk 0:02:45.7]} 9... c6 {[%clk
0:02:44.6]} 10. Nxd4 {[%clk 0:02:36]} 10... Bxd4 {[%clk 0:02:43.7]} 11. Ne2
{[%clk 0:02:35.3]} 11... Bxb2 {[%clk 0:01:59.6]} 12. Rb1 {[%clk 0:02:34.1]}
12... Ba3 {[%clk 0:02:00]} 13. O-O {[%clk 0:02:33]} 13... g5 {[%clk 0:01:48.6]}
14. Bg3 {[%clk 0:02:12.5]} 14... d5 {[%clk 0:01:38]} 15. exd5 {[%clk 0:02:11.3]}
15... cxd5 {[%clk 0:01:36.4]} 16. Bb5+ {[%clk 0:02:10.6]} 16... Bd7 {[%clk
0:01:36.4]} 17. Be5 {[%clk 0:02:00.6]} 17... Ng4 {[%clk 0:01:14.2]} 18. Bxh8
{[%clk 0:01:44.1]} 18... Bxb5 {[%clk 0:00:59.5]} 19. Rxb5 {[%clk 0:01:30.9]}
19... Qd6 {[%clk 0:00:59.1]} 20. Ng3 {[%clk 0:01:21.8]} 20... O-O-O {[%clk
0:00:54.8]} 21. Qxg4+ {[%clk 0:01:19.4]} 21... Kb8 {[%clk 0:00:52.9]} 1-0